{"text_format":"1","workbook":"xlsx","n_sheets":1,"sheets":["S1_HW Linear_Patterns"],"not_rendered":{"charts":0,"images":0,"macros":1,"external_links":0,"defined_names":1,"comments":0,"pivot_tables":0},"unopened":[],"bounds":{"document_bytes":16777216,"sheet_cells":100000,"rows_first":2000,"rows_last":500,"rows_between":2000,"halvings":0,"cell_chars":16384,"cell_head_chars":4096},"cells_cut":0,"cells_raw":0,"read":"whole","date_system":"1900"}

{"sheet":"S1_HW Linear_Patterns","index":0,"n_rows":129,"n_cols":57,"rows_kept":129,"cut":false,"hidden":false,"merged":[[47,7,47,9],[45,14,47,31],[45,7,45,8],[27,3,27,30],[28,3,33,30],[2,2,3,5],[2,6,3,32],[5,2,6,5],[5,6,6,32],[8,1,8,32],[10,28,10,30],[10,31,11,32],[12,31,13,32],[19,3,19,30],[20,3,25,30],[49,35,49,37],[45,35,45,37],[37,1,37,2],[37,3,37,5],[37,7,37,9],[37,14,39,31],[41,1,41,2],[41,3,41,5],[45,1,45,2],[37,35,37,38],[41,7,41,8],[41,14,43,31],[41,35,41,37],[39,7,39,9],[43,7,43,9],[45,3,45,5],[61,2,65,31],[72,4,72,7],[73,4,73,7],[72,14,73,14],[73,15,73,16],[72,15,72,16],[49,4,50,4],[49,1,49,2],[49,14,51,31],[49,5,50,6],[51,7,51,9],[102,15,102,16],[113,27,113,28],[81,19,81,21],[85,2,93,31],[128,27,128,32],[115,2,124,31],[101,14,102,14],[101,2,101,7],[102,2,102,7],[101,15,101,16],[84,2,84,31]]}
[]
[]
[null,null,"Name :"]
[]
[]
[null,null,"Teacher :"]
[]
[]
[null,"S1 Official Homework Linear Patterns                                                    Created by Mr Lafferty                                                                                                                                                                                                                       St. Ninian's High School"]
[]
[null,null,null,"This homework covers topics",null,null,null,null,null,null,null,null,null,null,null,null,null,null,null,null,null,null,null,null,null,null,null,null,"Score"]
[]
[null,null,null,"Basic Number Operations",null,null,null,null,null,null,null,null,null,null,null,null,null,null,null,"Context Linear Pattern",null,null,null,null,null,null,null,null,null,null,null,19]
[]
[null,null,null,"Square and Triangular Numbers",null,null,null,null,null,null,null,null,null,null,null,null,null,null,null,"Context Linear Pattern"]
[]
[null,null,null,"Linear Patterns"]
[]
[]
[null,null,null,"Teacher Comments :"]
[]
[]
[]
[]
[]
[]
[]
[null,null,null,"Pupil's Comment :"]
[]
[]
[]
[]
[]
[]
[]
[null,"1. ","Carry out the following instructions.",null,null,null,null,null,null,null,null,null,null,null,"( NON - CALCULATOR QUESTION )"]
[]
[null,"(a)",null,{"$f":"ROUND(RAND()*(950-730)+730,1)","v":816.4},null,null,"-",{"$f":"ROUND(RAND()*(550-330)+330,1)","v":381.6},null,null,null,"Working : ",null,null,null,null,null,null,null,null,null,null,null,null,null,null,null,null,null,null,null,null,null,null,null,{"$f":"D38-H38","v":434.79999999999995}]
[]
[]
[]
[null,"(b)",null,{"$f":"ROUND(RAND()*(50-15)+15,1)","v":19.2},null,null,"x",{"$f":"ROUND(RAND()*(9-3)+3,0)*10","v":80},null,null,null,"Working : ",null,null,null,null,null,null,null,null,null,null,null,null,null,null,null,null,null,null,null,null,null,null,null,{"$f":"D42*H42","v":1536}]
[]
[]
[]
[null,"(c) ",null,{"$f":"ROUND(RAND()*(98-32)+32,1)*H46","v":468.8},null,null,"÷",{"$f":"ROUND(RAND()*(9-4)+4,0)","v":8},null,null,null,"Working : ",null,null,null,null,null,null,null,null,null,null,null,null,null,null,null,null,null,null,null,null,null,null,null,{"$f":"D46/H46","v":58.6}]
[]
[]
[]
[null,"(d)",null,{"$f":"ROUND(RAND()*(9-2)+2,0)","v":6},"of",{"$f":"D50*D51*ROUND(RAND()*(20-1)+1,0)","v":336},null,null,null,null,null,"Working : ",null,null,null,null,null,null,null,null,null,null,null,null,null,null,null,null,null,null,null,null,null,null,null,{"$f":"F50/D51*D50","v":288}]
[null,null,null,{"$f":"D50+1","v":7}]
[]
[null,null,null,null,null,null,null,null,null,null,null,null,null,null,null,null,null,null,null,null,null,null,null,null,null,null,null,null,"( 5 marks )"]
[]
[null,null,null,null,null,null,null,null,null,null,null,null,null,null,null,null,null,null,null,null,null,null,null,null,null,null,null,null,null,null,null,null,null,null,null,null,{"$f":"HLOOKUP(AL55,AL56:BE57,2)","v":15},{"$f":"ROUND(RAND()*(20-5)+5,0)","v":5}]
[null,{"$f":"\" Q2.   Find the :-\"","v":" Q2.   Find the :-"},null,null,null,null,null,null,null,null,null,null,null,null,null,null,null,null,null,null,null,null,null,null,null,null,null,null,null,null,null,null,null,null,null,null,null,1,2,3,4,5,6,7,8,9,10,11,12,13,14,15,16,17,18,19,20]
[null,null,null,null,null,null,null,null,null,null,null,null,null,null,null,null,null,null,null,null,null,null,null,null,null,null,null,null,null,null,null,null,null,null,null,null,null,1,{"$f":"AL57+AM56","v":3},{"$f":"AM57+AN56","v":6},10,15,21,28,36,45,55,66,78,91,105,120,136,153,171,190,210]
[null,null,{"$f":"\"(a)  \"&AL55&\"th triangular number.\"","v":"(a)  5th triangular number."},null,null,null,null,null,null,null,null,null,null,null,null,null,null,null,null,null,null,null,null,null,null,null,null,null,null,null,null,null,null,null,null,null,null,{"$f":"AL56*AL56","v":1},{"$f":"AM56*AM56","v":4},9,16,25,36,49,64,81,100,121,144,169,196,225,256,289,324,361,400]
[null,null,null,null,null,null,null,null,null,null,null,null,null,null,null,null,null,null,null,null,null,null,null,null,null,null,null,null,null,null,null,null,null,null,null,null,{"$f":"HLOOKUP(AL59,AL56:BE58,3)","v":256},{"$f":"ROUND(RAND()*(20-5)+5,0)","v":16}]
[null,null,{"$f":"\"(a)  \"&AL59&\"th square number.\"","v":"(a)  16th square number."}]
[]
[]
[]
[]
[]
[]
[]
[null,null,null,null,null,null,null,null,null,null,null,null,null,null,null,null,null,null,null,null,null,null,null,null,null,null,null,null,"( 2 marks )"]
[]
[]
[null,{"$f":"\"Q3.    (a) Complete the table of van hire charges.\"","v":"Q3.    (a) Complete the table of van hire charges."},null,null,null,null,null,null,null,null,null,null,null,null,null,null,null,null,null,null,null,null,null,null,null,null,null,null,null,null,null,null,null,null,null,null,null,null,null,1,2,3,4,5,6,{"$f":"ROUND(RAND()*(20-11)+11,0)","v":12},{"$f":"ROUND(RAND()*(40-25)+25,0)","v":34}]
[null,null,null,null,null,null,null,null,null,null,null,null,null,null,null,null,null,null,null,null,null,null,null,null,null,null,null,null,null,null,null,null,null,null,null,null,null,null,{"$f":"ROUND(RAND()*(9-4)+4,0)","v":7},{"$f":"AN71*$AM$72+$AM$73","v":13},{"$f":"AO71*$AM$72+$AM$73","v":20},27,34,41,48,90,244]
[null,null,null,null,"No. of days (D)",null,null,null,{"$f":"AN71","v":1},{"$f":"AO71","v":2},3,4,5,6,null,{"$f":"AT71","v":12},null,null,null,null,null,null,null,null,null,null,null,null,null,null,null,null,null,null,null,null,null,null,{"$f":"ROUND(RAND()*(9-(1))+(1),0)","v":6}]
[null,null,null,null,"No. of £ (C)",null,null,null,{"$f":"AN72","v":13},{"$f":"AO72","v":20},27]
[null,null,null,null,null,null,null,null,null,null,null,null,null,null,null,null,null,null,null,null,null,null,null,null,null,null,null,null,null,null,null,null,null,null,null,"C"]
[null,null,null,null,null,null,null,null,null,null,null,null,null,null,null,null,null,null,null,null,null,null,null,null,null,null,null,null,null,null,null,null,null,null,null,"="]
[null,null,null,"(b)   Write a formula using symbols",null,null,null,null,null,null,null,null,null,null,null,null,null,null,null,null,null,null,null,null,null,null,null,null,null,null,null,null,null,null,null,{"$f":"AM72","v":7}]
[null,null,null,null,null,null,null,null,null,null,null,null,null,null,null,null,null,null,null,null,null,null,null,null,null,null,null,null,null,null,null,null,null,null,null,"D"]
[null,null,null,null,null,null,null,null,null,null,null,null,null,null,null,null,null,null,null,null,null,null,null,null,null,null,null,null,null,null,null,null,null,null,null,"+"]
[null,null,null,null,null,null,null,null,null,null,null,null,null,null,null,null,null,null,null,null,null,null,null,null,null,null,null,null,null,null,null,null,null,null,null,{"$f":"AM73","v":6}]
[]
[null,null,null,{"$f":"\"(c)   Calculate the cost of hiring a van for \"&AU71&\" days.\"","v":"(c)   Calculate the cost of hiring a van for 34 days."},null,null,null,null,null,null,null,null,null,null,null,null,null,null,"£",null,null,null,null,null,null,null,null,null,null,null,null,null,null,null,null,{"$f":"AU72","v":244}]
[]
[]
[null,null,"Working :"]
[]
[]
[]
[]
[]
[]
[]
[]
[]
[null,null,null,null,null,null,null,null,null,null,null,null,null,null,null,null,null,null,null,null,null,null,null,null,null,null,null,null,"( 6 marks )"]
[]
[]
[null,"Q4.   A metal fence for a garden is made by joining iron bars together."]
[null,null,"   The table shows the link between the number of sections and the number of iron bars."]
[null,null,null,null,null,null,null,null,null,null,null,null,null,null,null,null,null,null,null,null,null,null,null,null,null,null,null,null,null,null,null,null,null,null,null,null,null,null,null,1,2,3,4,5,6,{"$f":"ROUND(RAND()*(20-11)+11,0)","v":19},{"$f":"ROUND(RAND()*(60-25)+25,0)","v":44}]
[null,null,null,null,null,null,null,null,null,null,null,null,null,null,null,null,null,null,null,null,null,null,null,null,null,null,null,null,null,null,null,null,null,null,null,null,null,null,{"$f":"ROUND(RAND()*(9-2)+2,0)","v":4},{"$f":"AN100*$AM$101+$AM$102","v":5},{"$f":"AO100*$AM$101+$AM$102","v":9},13,17,21,25,77,177]
[null,null,"No. of sections (S)",null,null,null,null,null,{"$f":"AN100","v":1},{"$f":"AO100","v":2},{"$f":"AP100","v":3},{"$f":"AQ100","v":4},{"$f":"AR100","v":5},{"$f":"AS100","v":6},null,{"$f":"AT100","v":19},null,null,null,null,null,null,null,null,null,null,null,null,null,null,null,null,null,null,null,null,null,null,{"$f":"ROUND(RAND()*(9-(1))+(1),0)","v":1}]
[null,null,"No. of Iron Bars (B)",null,null,null,null,null,{"$f":"AN101","v":5},9,13]
[]
[null,null,null,"(a)   Complete the table above."]
[]
[null,null,null,null,null,null,null,null,null,null,null,null,null,null,null,null,null,null,null,null,null,null,null,null,null,null,null,null,null,null,null,null,null,null,null,"B"]
[null,null,null,null,null,null,null,null,null,null,null,null,null,null,null,null,null,null,null,null,null,null,null,null,null,null,null,null,null,null,null,null,null,null,null,"="]
[null,null,null,"(b)   Write a formula using symbols",null,null,null,null,null,null,null,null,null,null,null,null,null,null,null,null,null,null,null,null,null,null,null,null,null,null,null,null,null,null,null,{"$f":"AM101","v":4}]
[null,null,null,null,null,null,null,null,null,null,null,null,null,null,null,null,null,null,null,null,null,null,null,null,null,null,null,null,null,null,null,null,null,null,null,"S"]
[null,null,null,null,null,null,null,null,null,null,null,null,null,null,null,null,null,null,null,null,null,null,null,null,null,null,null,null,null,null,null,null,null,null,null,"+"]
[null,null,null,null,null,null,null,null,null,null,null,null,null,null,null,null,null,null,null,null,null,null,null,null,null,null,null,null,null,null,null,null,null,null,null,{"$f":"AM102","v":1}]
[]
[null,null,null,{"$f":"\"(c)   A fence is made up by joining \"&AU101&\"iron bars.  How many sections are in this fence.\"","v":"(c)   A fence is made up by joining 177iron bars.  How many sections are in this fence."},null,null,null,null,null,null,null,null,null,null,null,null,null,null,null,null,null,null,null,null,null,null,null,null,null,"sections",null,null,null,null,null,{"$f":"AU100","v":44}]
[]
[]
[]
[]
[]
[]
[]
[]
[]
[]
[]
[null,null,null,null,null,null,null,null,null,null,null,null,null,null,null,null,null,null,null,null,null,null,null,null,null,null,null,null,"( 6 marks )"]
[]
[]
[null,null,null,null,null,null,null,null,null,null,null,null,null,null,null,null,null,null,null,null,null,null,null,null,null,null,null,"Total marks 19 "]